Cogmind - Beta 10.2 @@@ ROGUE MODE // 2021.01.23 @ 21:38:50 Player: WayneKnight Result: Self-destructed Performance ------------- Evolutions (2) 1000 Regions Visited (6) 1200 Robots Destroyed (89) 445 Value Destroyed (2695) 2695 Prototype IDs (29) 580 Alien Tech Used (0) 0 Bonus (489) 489 TOTAL SCORE: 6409 Bonus ------- High Alert Combat Kills 11 Follower Combat Kills 178 Aligned with FarCom 300 Cogmind --------- Core Integrity 183/550 Matter 227/300 Energy 104/265 System Corruption 1% Temperature Cool (0) Movement Flying (1085) Ox15 Location -8/Storage Parts ------- > --- POWER (1) -------- Improved Ion Engine > --- PROPULSION (3) --- Improved VTOL Module > --- UTILITY (5) ------ Large Storage Unit Large Storage Unit Large Storage Unit High-capacity Storage Unit Improved Light Armor Plating > --- WEAPON (2) ------- Assault Rifle Assault Rifle > --- INVENTORY (30) --- Micro Nuclear Core Armored Treads Armored Huge Wheel Armored Huge Wheel Airjet Large Storage Unit Advanced Sensor Array Advanced Signal Interpreter Modified TNC Transmission Jammer Cloak of Protection Improved Light Armor Plating Insulated Plating System Shield Gatling Laser Gatling Laser Gatling Laser Gatling Laser Advanced Beam Cannon Heavy Assault Rifle Minigun Minigun Gauss Cannon Advanced EMP Blaster Rocket Launcher Katana Great Axe Peak State ------------ > --- POWER ------------ Light Deuterium Engine > --- PROPULSION ------- Armored Huge Wheel Improved VTOL Module > --- UTILITY ---------- Large Storage Unit Large Storage Unit Large Storage Unit High-capacity Storage Unit Improved Light Armor Plating > --- WEAPON ----------- Assault Rifle Advanced EMP Blaster > --- INVENTORY -------- Improved Ion Engine Micro Nuclear Core Armored Treads Armored Huge Wheel Armored Huge Wheel Airjet Large Storage Unit Advanced Sensor Array Advanced Signal Interpreter Modified TNC Transmission Jammer Cloak of Protection Improved Light Armor Plating Insulated Plating System Shield Gatling Laser Gatling Laser Gatling Laser Gatling Laser Advanced Beam Cannon Assault Rifle Heavy Assault Rifle Minigun Minigun Gauss Cannon Rocket Launcher Katana Great Axe [Rating: 37] Favorites ----------- Power Ion Engine Engine Ion Engine Power Core Nuclear Core Propulsion Aluminum Leg Treads Light Treads Leg Aluminum Leg Wheel Armored Huge Wheel Flight Unit Improved VTOL Module Utility Large Storage Unit Device Transmission Jammer Storage Large Storage Unit Protection Hardened Medium Armor Plating Weapon Heavy EM Pulse Gun Energy Gun Heavy EM Pulse Gun Energy Cannon Advanced Beam Cannon Ballistic Gun Light Assault Rifle Ballistic Cannon Gauss Cannon Launcher Advanced EMP Blaster Slashing Weapon Katana Build | -11 -10 -10 -10 -9 -8 -8 ------- Run | Scr Mat Min Exi Min Mat Sto Slots Evolved 4 | . . . . . 4 . Power . | . . . . . . . Propulsion 1 | . . . . . 1 . Utility 3 | . . . . . 3 . Weapon . | . . . . . . . Parts Attached 85 | . 8 9 . 14 37 17 Power 10 | . . 3 . 2 3 2 Engine 8 | . . 2 . 2 2 2 Core 2 | . . 1 . . 1 . Reactor . | . . . . . . . Propulsion 21 | . 2 4 . 4 10 1 Treads 11 | . 2 2 . 4 3 . Leg 8 | . . 2 . . 6 . Wheel 1 | . . . . . 1 . Hover . | . . . . . . . Flight 1 | . . . . . . 1 Utility 23 | . 3 . . 1 14 5 Device 1 | . . . . . . 1 Storage 11 | . 2 . . 1 8 . Processor . | . . . . . . . Hackware . | . . . . . . . Protection 11 | . 1 . . . 6 4 Artifact . | . . . . . . . Weapon 31 | . 3 2 . 7 10 9 Energy Gun 8 | . 1 2 . 3 . 2 Energy Cannon 1 | . . . . . . 1 Ballistic Gun 15 | . 2 . . 4 6 3 Ballistic Cannon 1 | . . . . . 1 . Launcher 4 | . . . . . 3 1 Special Weapon . | . . . . . . . Impact Weapon . | . . . . . . . Slashing Weapon 2 | . . . . . . 2 Piercing Weapon . | . . . . . . . Special Melee Weapon . | . . . . . . . Unidentified Prototypes 2 | . . . . . 1 1 Parts Lost 20 | . 1 3 . 4 9 3 Power 4 | . . 1 . . 2 1 Propulsion 5 | . . . . 1 3 1 Utility 4 | . . . . . 3 1 Weapon 7 | . 1 2 . 3 1 . Highest Loss Streak 6 | . 1 2 . 3 6 2 Average Slot Usage (%) 91 | . 95 86 85 99 89 87 Engine 7 | . 14 10 . 6 5 6 Core 3 | . . 2 14 7 . 2 Treads 14 | . 28 9 28 27 3 . Leg 7 | . . 18 . . 15 . Wheel 2 | . . . . . 3 8 Storage 28 | . 21 28 28 28 31 36 Protection 5 | . 2 . . . 12 7 Energy Gun 7 | . 6 14 14 13 1 1 Ballistic Gun 12 | . 21 1 . 13 15 10 Naked Turns . | . . . . . . . Heaviest Build 98 | 10 40 42 42 63 98 95 Greatest Support 42 | 20 40 42 42 42 30 28 Greatest Overweight (x) 4 | . . 1 . 2 4 3 Average Overweight (x) 1 | . . . . . 2 3 Largest Inventory Capacity 30 | 6 16 16 16 18 30 30 Average Capacity 20 | 6 11 16 16 17 26 30 Most Carried 30 | 6 13 16 16 18 30 30 Average Carried 18 | 6 8 15 15 15 23 29 Final Capacity 30 | 6 16 16 16 18 30 30 Final Carried 29 | 6 13 15 16 17 29 29 Class Distribution -------------------- 55% | Mutant 44% | Hauler-Mutant Dominant Class ---------------- Mutant | -10/Materials Mutant | -10/Mines Mutant | -10/Exiles Mutant | -9/Mines Hauler-Mutant | -8/Materials Hauler-Mutant | -8/Storage Resources | -11 -10 -10 -10 -9 -8 -8 ----------- Run | Scr Mat Min Exi Min Mat Sto Matter Collected 1826 | 200 158 68 . 199 1053 148 Remotely . | . . . . . . . Salvage Created 3291 | . 335 355 . 563 1464 574 Parts 215 | . 34 23 . 33 94 31 Haulers Intercepted 1 | . . . . . 1 . Recyclers Shooed . | . . . . . . . Parts Field Recycled . | . . . . . . . Retrieved Matter . | . . . . . . . Parts Self-Destructed . | . . . . . . . Prevented . | . . . . . . . Kills | -11 -10 -10 -10 -9 -8 -8 ------- Run | Scr Mat Min Exi Min Mat Sto Combat Hostiles Destroyed 72 | . 11 9 . 14 28 10 Guns 55 | . 11 7 . 14 20 3 Cannons 4 | . . . . . 3 1 AOE 13 | . . 2 . . 5 6 Classes Destroyed 12 | . 3 . . 1 7 1 Worker 3 | . . . . . 3 . Builder 4 | . . . . . 4 . Tunneler 1 | . . . . . 1 . Hauler 1 | . . . . . 1 . Recycler 2 | . . . . . 1 1 Watcher 6 | . 2 . . . 3 1 Swarmer 19 | . 6 3 . 3 7 . Grunt 36 | . 5 6 . 9 12 4 Duelist 2 | . . . . 2 . . Protector 2 | . . . . . . 2 Sentry 12 | . . . . . 8 4 Hunter 1 | . . . . . 1 . Best Kill Streak 8 | . 3 3 . 3 8 7 Combat Bots Only 6 | . 3 3 . 3 6 6 Max Kills in Single Turn 5 | . 1 1 . 1 5 5 Gunslinging . | . . . . . . . Exploded 4 | . . 1 . . 4 4 Melee . | . . . . . . . Uniques/NPCs Destroyed . | . . . . . . . Combat | -11 -10 -10 -10 -9 -8 -8 -------- Run | Scr Mat Min Exi Min Mat Sto Damage Taken 4285 | . 410 469 . 497 2005 904 Core 540 | . 33 88 . 52 247 120 Absorbed by Shields . | . . . . . . . Core Remaining (%) 65 | 100 . . . 30 . . Volleys Fired 244 | . 45 30 . 39 113 17 Largest 2 | . 2 2 . 2 2 2 Hottest 108 | . 60 90 . 90 108 103 Shots Fired 457 | . 88 43 . 72 223 31 Gun 434 | . 88 43 . 72 206 25 Cannon 17 | . . . . . 14 3 Launcher 6 | . . . . . 3 3 Special . | . . . . . . . Kinetic 336 | . 64 11 . 35 207 19 Thermal 22 | . . . . . 13 9 Explosive 3 | . . . . . 3 . Electromagnetic 96 | . 24 32 . 37 . 3 Robot Hit Streak 17 | . 11 6 . 14 14 17 Robot Miss Streak 4 | . 4 2 . 3 3 2 Penetration Max . | . . . . . . . Secondary Targets 5 | . 2 . . 3 . . Max Gunslinging Chain 1 | . 1 . . 1 . . Shots Hit Robots 313 | . 57 28 . 51 150 27 Core Hits 157 | . 21 12 . 25 77 22 Critical Hits 3 | . . . . 1 1 1 Critical Kills 3 | . . . . 1 1 1 Critical Parts Destroyed . | . . . . . . . Melee Attacks 16 | . . . . . . 16 Impact . | . . . . . . . Slashing 16 | . . . . . . 16 Piercing . | . . . . . . . Sneak Attacks . | . . . . . . . Combat Hostiles . | . . . . . . . Follow-up Attacks . | . . . . . . . Damage Inflicted 6172 | . 561 429 . 625 2937 1620 Guns 4062 | . 542 318 . 611 2224 367 Cannons 228 | . . . . . 164 64 Explosions 1762 | . . 88 . . 535 1139 Melee 33 | . . . . . . 33 Ramming 87 | . 19 23 . 14 14 17 Kinetic 2835 | . 296 51 . 162 2099 227 Thermal 1098 | . . 88 . . 289 721 Explosive 535 | . . . . . 535 . Electromagnetic 1584 | . 246 267 . 449 . 622 Impact . | . . . . . . . Slashing 33 | . . . . . . 33 Piercing . | . . . . . . . Highest Corruption 1 | . . . . . . 1 Average Corruption 1 | . . . . . . 1 Corruption Purged . | . . . . . . . Overload Shots . | . . . . . . . Overflow Damage 97 | . . . . . 60 37 Projectiles 19 | . . . . . 19 . Explosions 78 | . . . . . 41 37 Melee . | . . . . . . . Knockbacks 1 | . . . . . 1 . Impact . | . . . . . . . Kinetic 1 | . . . . . 1 . Secondary . | . . . . . . . Self-Inflicted Damage 121 | . . 1 . . . 120 Shots 4 | . . . . . . 4 Rammed 8 | . 3 1 . 2 . 2 Targets Rammed 13 | . 3 5 . 2 1 2 Kicked 5 | . . 4 . . 1 . Crushed . | . . . . . . . Highest Temperature 376 | . 70 143 . 209 376 162 Average Temperature 69 | . 29 38 . 64 113 55 Received Heat Transfer 1527 | . 114 171 . 189 864 189 Effects 1 | . . . . . 1 . Energy Bleed 1 | . . . . . 1 . Siege Activations . | . . . . . . . Robots Corrupted . | . . . . . . . Combat Hostiles . | . . . . . . . Parts Fried 2 | . . 1 . 1 . . Impact Corruptions . | . . . . . . . Robots Melted . | . . . . . . . Combat Hostiles . | . . . . . . . Parts Melted 4 | . . . . . 4 . Heat Transferred 1727 | . . 50 . . 675 1002 Parts Sabotaged . | . . . . . . . Parts Stolen . | . . . . . . . Parts Stripped . | . . . . . . . Power Chain Reactions 5 | . . 2 . . . 3 Missiles Intercepted . | . . . . . . . Alert | -11 -10 -10 -10 -9 -8 -8 ------- Run | Scr Mat Min Exi Min Mat Sto Peak Influence 438 | . 221 229 . 140 438 240 Initial 117 | . . 36 . . 37 117 Average 93 | . 86 88 . 57 121 85 Maximum Alert Level 2 | . 1 1 . . 2 1 Low Security (%) 87 | 100 95 84 . 100 74 97 Level 1 12 | . 4 15 . . 24 2 Level 2 . | . . . . . 1 . Level 3 . | . . . . . . . Level 4 . | . . . . . . . Level 5 . | . . . . . . . High Security . | . . . . . . . Max Security . | . . . . . . . Squads Dispatched 14 | . 5 1 . 3 3 2 Investigation 8 | . 4 1 . 1 2 . Extermination . | . . . . . . . Reinforcement 2 | . 1 . . . 1 . Assault 4 | . . . . 2 . 2 Garrison . | . . . . . . . Intercept . | . . . . . . . Construction Impeded . | . . . . . . . Haulers Reinforced . | . . . . . . . Stealth | -11 -10 -10 -10 -9 -8 -8 --------- Run | Scr Mat Min Exi Min Mat Sto Distress Signals 5 | . 1 . . . 3 1 Communications Jammed . | . . . . . . . Distress Signals . | . . . . . . . Times Spotted 117 | . 20 9 . 18 52 18 Peak Tracking Total 10 | . 4 3 . 4 7 10 Tactical Retreats 4 | . 2 . . . 1 1 Traps | -11 -10 -10 -10 -9 -8 -8 ------- Run | Scr Mat Min Exi Min Mat Sto Traps Triggered 8 | . 2 . . 2 3 1 Indirectly . | . . . . . . . Trap Hack Attempts . | . . . . . . . Triggered . | . . . . . . . Disarmed . | . . . . . . . Reprogrammed . | . . . . . . . Reused . | . . . . . . . Traps Extracted . | . . . . . . . Installed . | . . . . . . . Triggered 2 | . 2 . . . . . Machines | -11 -10 -10 -10 -9 -8 -8 ---------- Run | Scr Mat Min Exi Min Mat Sto Machines Disabled 10 | . 2 . . . 2 6 Max in Single Turn 2 | . 1 . . . 1 2 Garrison Access 1 | . . . . . 1 . Machines Sabotaged . | . . . . . . . Garrisons Compromised . | . . . . . . . Overloaded Fab Kills . | . . . . . . . Fab Network Shutdowns . | . . . . . . . Hacking | -11 -10 -10 -10 -9 -8 -8 --------- Run | Scr Mat Min Exi Min Mat Sto Machines Accessed 29 | . 7 1 2 2 12 5 Terminals 21 | . 7 . . 1 8 5 Fabricators . | . . . . . . . Repair Stations 2 | . . . . . 2 . Recycling Units . | . . . . . . . Scanalyzers 1 | . . . . . 1 . Garrison Access 1 | . . . . . 1 . Total Hacks 71 | . 18 1 2 5 32 13 Successful 39 | . 12 1 2 2 16 6 Failed 31 | . 5 . . 3 16 7 Catastrophic 7 | . 1 . . . 5 1 Database Lockouts 1 | . 1 . . . . . Manual 37 | . 12 . 1 4 14 6 Terminals 57 | . 18 . . 4 22 13 Fabricators . | . . . . . . . Repair Stations 5 | . . . . . 5 . Recycling Units . | . . . . . . . Scanalyzers 4 | . . . . . 4 . Garrison Access 1 | . . . . . 1 . Terminal Hacks 21 | . 6 1 2 2 6 4 Record 1 | . . . 1 . . . Part Schematic 1 | . . . . 1 . . Robot Analysis 2 | . 1 . . . 1 . Prototype ID Bank 2 | . 1 . . . . 1 Open Door 3 | . . 1 . 1 . 1 Branch Access Points 1 | . 1 . . . . . Alert Level 3 | . . . . . 2 1 Unreport Threat 3 | . . . . . 2 1 Locate Traps 2 | . 2 . . . . . Recall Investigation 1 | . . . . . 1 . Hauler Manifests 1 | . 1 . . . . . EX-Prototype ID Bank 1 | . . . 1 . . . Fabricator Hacks . | . . . . . . . Repair Station Hacks 3 | . . . . . 3 . Scan Component 2 | . . . . . 2 . Repair 1 | . . . . . 1 . Recycling Unit Hacks . | . . . . . . . Scanalyzer 4 | . . . . . 4 . Insert Component 2 | . . . . . 2 . Analyze 2 | . . . . . 2 . Garrison Access Hacks 1 | . . . . . 1 . Seal Access 1 | . . . . . 1 . Unauthorized Hacks 10 | . 6 . . . 2 2 Terminals 10 | . 6 . . . 2 2 Track 3 | . 2 . . . 1 . Botnet 7 | . 4 . . . 1 2 Fabricators . | . . . . . . . Repair Stations . | . . . . . . . Recycling Units . | . . . . . . . Scanalyzers . | . . . . . . . Garrison Access . | . . . . . . . Data Cores Recovered . | . . . . . . . Used . | . . . . . . . Hacking Detections 20 | . 4 . . 1 10 5 Full Trace Events 5 | . 2 . . 1 2 . Feedback Events . | . . . . . . . Feedback Blocked . | . . . . . . . Robot Schematics Acquired . | . . . . . . . Robots Built . | . . . . . . . Matter . | . . . . . . . Time . | . . . . . . . Total Robot Build Rating . | . . . . . . . Part Schematics Acquired 3 | . . . . 1 2 . Parts Built . | . . . . . . . Matter . | . . . . . . . Time . | . . . . . . . Total Part Build Rating . | . . . . . . . Parts Repaired 1 | . . . . . 1 . Time 38 | . . . . . 38 . Parts Recycled . | . . . . . . . Recycled Matter . | . . . . . . . Retrieved Matter . | . . . . . . . Retrieved Components . | . . . . . . . Parts Scanalyzed 2 | . . . . . 2 . Part Schematics Acquired 2 | . . . . . 2 . Parts Damaged . | . . . . . . . Bothacking | -11 -10 -10 -10 -9 -8 -8 ------------ Run | Scr Mat Min Exi Min Mat Sto Used RIF Installer . | . . . . . . . Robots Hacked . | . . . . . . . Non-combat . | . . . . . . . Combat . | . . . . . . . Robot Hacks Applied . | . . . . . . . Relay Couplers Released . | . . . . . . . Robots Rewired 1 | . 1 . . . . . Allies Hacked . | . . . . . . . Hacks Repelled . | . . . . . . . Allies | -11 -10 -10 -10 -9 -8 -8 -------- Run | Scr Mat Min Exi Min Mat Sto Total Allies 5 | . 1 1 . 1 . 2 Largest Group 2 | . 1 1 1 1 1 2 Highest-Rated Group 62 | . 16 31 31 31 31 62 Highest-Rated Ally 31 | . 16 31 31 31 31 31 Total Orders . | . . . . . . . Ally Attacks 38 | . 2 10 . 11 10 5 Total Damage 665 | . 30 150 . 215 168 102 Kills 6 | . . 1 . 4 1 . Allies Corrupted . | . . . . . . . Allies Melted . | . . . . . . . Intel | -11 -10 -10 -10 -9 -8 -8 ------- Run | Scr Mat Min Exi Min Mat Sto Robot Analysis Total 2 | . 1 . . . 1 . Derelict Logs Recovered 3 | . . 2 . 1 . . Drone Launches . | . . . . . . . Drone Recoveries . | . . . . . . . Exploration | -11 -10 -10 -10 -9 -8 -8 ------------- Run | Scr Mat Min Exi Min Mat Sto Turns Passed 7056 | 2 1182 856 511 1370 2421 714 Spaces Moved 3352 | 2 515 486 335 549 1094 371 Core . | . . . . . . . Treads 1747 | . 514 137 335 549 212 . Legs 935 | 2 1 349 . . 583 . Wheels 670 | . . . . . 299 371 Hover . | . . . . . . . Flight . | . . . . . . . Fastest Speed 120 | 120 120 150 152 152 120 130 Average Speed 161 | 120 159 151 152 171 174 130 Slowest Speed 225 | 120 160 180 152 200 225 130 Overloaded Moves . | . . . . . . . Propulsion Burnouts . | . . . . . . . Robots Hopped . | . . . . . . . Cave-ins Triggered . | . . . . . . . Exploration Rate (%) 68 | 2 77 98 70 96 83 50 Regions Visited 6 Branch Regions 4 Pre-discovered Areas 1 | . . . 1 . . . Known Exits Taken 1 | . 1 . . . . . Unknown Exits Taken 5 | 1 . 1 1 1 1 . Scrap Searched 2 | . . 1 . 1 . . Spaces Dug 1 | . . . . . . 1 Terrain Destroyed 58 | . . 8 . . 38 12 Melee 1 | . . . . . . 1 Projectile 12 | . . . . . 12 . AOE 45 | . . 8 . . 26 11 Terrain Rammed . | . . . . . . . Walls Destroyed . | . . . . . . . Machines Disabled . | . . . . . . . Actions | -11 -10 -10 -10 -9 -8 -8 --------- Run | Scr Mat Min Exi Min Mat Sto Total 4523 | 1 792 559 337 910 1375 549 Wait 715 | . 210 19 . 297 83 106 Move 3346 | 1 514 485 334 548 1093 371 Hop . | . . . . . . . Pick Up 56 | . 5 6 2 7 27 9 Fast Attach 27 | . 2 3 . 5 10 7 Attach 20 | . 1 1 . 6 9 3 Detach 4 | . 1 . . . 2 1 Swap 38 | . 5 5 . 3 18 7 Drop 38 | . . 5 1 3 19 10 Fire 244 | . 45 30 . 39 113 17 Melee 16 | . . . . . . 16 Ram 2 | . . . . . . 2 Kick 6 | . . 5 . . 1 . Crush 5 | . 3 . . 2 . . Escape Stasis . | . . . . . . . Rewire 6 | . 6 . . . . . Trap . | . . . . . . . Miscellaneous . | . . . . . . . Route ------- -11/Scrapyard -10/Materials (discovered 4 exits: [*Mat x2] / *Min x2) -10/Mines (discovered 3 exits: [*Mat x2] / *Exi) -10/Exiles -9/Mines (discovered 2 exits: *Mat x2) -8/Materials (discovered 5 exits: *Fac x3 / *Sto x2) -8/Storage History --------- Turn | Location | Event 1 | -11/Scrapyard | Discovered new exit (range 1) 3 | -11/Scrapyard | Entered Materials 111 | -10/Materials | Discovered new exit (range 16) 216 | -10/Materials | Central database locked down 216 | -10/Materials | Discovered new exit (range 8) 312 | -10/Materials | Build established: Mutant 381 | -10/Materials | Discovered new exit (range 6) 485 | -10/Materials | Discovered new exit (range 16) 733 | -10/Materials | Identified exit to Mines 1185 | -10/Materials | Entered Mines 1192 | -10/Mines | Met a Derelict bent on vengeance 1383 | -10/Mines | Escorted by a lone wolf Derelict 1582 | -10/Mines | Discovered new exit (range 7) 1837 | -10/Mines | Discovered new exit (range 5) 1843 | -10/Mines | Met a Derelict shopkeep closing up shop 1932 | -10/Mines | Learned location of 1 exit from Materials 1967 | -10/Mines | Learned Materials machine intel 2034 | -10/Mines | Deemed a non-threat by the Exiles lab entrance 2035 | -10/Mines | Discovered new exit (range 5) 2041 | -10/Mines | Entered Exiles 2041 | -10/Exiles | Accompanied by 1 ally 2078 | -10/Exiles | Met 8R-AWN 2101 | -10/Exiles | Met EX-HEX 2178 | -10/Exiles | Met EX-DEC 2207 | -10/Exiles | Learned location of Zion (-7) 2320 | -10/Exiles | Met EX-BIN 2342 | -10/Exiles | Aligned with FarCom system 2344 | -10/Exiles | Given EX-Vault access code 2383 | -10/Exiles | Opened EX-Vault 2397 | -10/Exiles | Found Cloak of Protection 2408 | -10/Exiles | Found Modified TNC 2438 | -10/Exiles | Warned to stay clear of 0b10 Research branches 2535 | -10/Exiles | Discovered new exit (range 12) 2552 | -10/Exiles | Stole two prototypes: Cloak of Protection, Modified TNC 2552 | -10/Exiles | Entered Mines 3158 | -9/Mines | Learned Materials terminal intel 3159 | -9/Mines | Discovered new exit (range 8) 3272 | -9/Mines | Core integrity fell below 50% 3316 | -9/Mines | Lost 3 parts (3w) 3644 | -9/Mines | Met a Derelict who couldn't figure out how to use a Trap Extractor 3822 | -9/Mines | Met a Derelict testing a Signal Generator 3910 | -9/Mines | Discovered new exit (range 6) 3922 | -9/Mines | Entered Materials 3922 | -8/Materials | Accompanied by 1 ally 3922 | -8/Materials | Evolved 4 slots: Propulsion x1, Utility x3 3923 | -8/Materials | Identified exit to Factory 3924 | -8/Materials | Loaded intel: 55 machine locations 3925 | -8/Materials | Loaded intel: 12 terminal locations 4229 | -8/Materials | Build established: Hauler-Mutant 4376 | -8/Materials | Lost 6 parts (1p2n2u1w) 4759 | -8/Materials | Repaired Adv. Treads 4870 | -8/Materials | Discovered exit to Factory (range 15) 5828 | -8/Materials | Discovered exit to Factory (range 8) 5878 | -8/Materials | Discovered new exit (range 7) 6082 | -8/Materials | Discovered new exit (range 10) 6305 | -8/Materials | Lost 3 parts (1p1n1u) 6343 | -8/Materials | Entered Storage 6804 | -8/Storage | Core integrity fell below 50% 6948 | -8/Storage | Met a pair of Derelict thieves 7057 | -8/Storage | Self-destructed Last Messages --------------- 07036_ 7Z-1VQ(g) destroyed. 07037_ G-47 Trooper destroyed. 07039_ Chain reaction triggered in Lgt. Angular Momentum Engine. 07039_ G-47 Trooper destroyed. 07039_ Lgt. Deuterium Engine destroyed. 07039_ Destroyed Lgt. Deuterium Engine. 07039_ G-47 Trooper destroyed. 07039_ R-06 Scavenger destroyed. 07039_ Heavy Doors breached. 07039_ Destroyed Hvy. Laser. 07039_ Destroyed Lgt. Angular Momentum Engine. 07039_ Heavy Doors breached. 07039_ I-25 Savior destroyed. 07039_ G-50 Soldier destroyed. 07039_ Chain reaction triggered in Lgt. Nuclear Core. 07039_ Destroyed Imp. Heat Sink. 07045_ Arm. Huge Wheel destroyed. 07045_ Chain reaction triggered in Lgt. Angular Momentum Engine. 07045_ Destroyed Hvy. Laser. 07045_ I-25 Savior destroyed. Map ----- +----------------------------------------------------+ | ????????????????????# # #???????????? | | ????????????????????# [ # #???????????? | | ????????????????????# ! # #???????????? | | ????????????????????# ! # #???????????? | | ????????????????????########## #???????????? | | ????????????????????????????## #???????????? | | ?????????????????????????????# #???????????? | | ?????????????????????????????# #???????????? | | ?????????????????????????????# #???????????? | | ??????????????????????????#### #???????????? | | ??????????????????????????" + ######??????? | | ??????????????????????????" # #??????? | | ??????????????????????????" # #??????? | | ??????????????????????????#T## =% #??????? | | ????????????????????????######/#### ###????? | | ????????????????????????# # #T####?? | | ????????????????????????? """ """%+ + "]]#?? | | ????????????????????????# """ """%# # ]]#?? | | ????????????????????????# """ """*# # "]]#?? | | ????????????????????????# # ######?? | | ????????????????????????# ! # #??????? | | ????????????????????????# # #??????? | | ???????????????########?# # ######## | | ???????????????#!=![[!#?##"Y"# #### # | | ???????????????#!g*!ll#??#"""##???# # | | ???????????????#% !%!@#??###??????# # | | ???????????????# %[%[=#???????????# ^ + | | ???????????????##!%%###???????????# #[ """ | | ???????????????;!% T#????????????# # """ | | ??????????????#; =% ##????#######?# # """ | | ?????????????#; #+#####?#"""""### ######## | | ?????????????# ##?# ###""T""## | | ?????????????#????# ! g | | ??????????????????# %[ ###T### | | ??????????????????# = #??##?? | | ??????????????????# ########## #?????? | | ??????????????????####+##????????#######?????? | | ?????????????????????????????????????????????? | | ?????????????????????????????????????????????? | | ?????????????????????????????????????????????? | | ?????????????????????????????????????????????? | | ?????????????????????????????????????????????? | | ?????????????????????????????????????????????? | | ?????????????????????????????????????????????? | | ?????????????????????????????????????????????? | | ?????????????????????????????????????????????? | | ?????????????????????????????????????????????? | | ?????????????????????????????????????????????? | | ?????????????????????????????????????????????? | | ?????????????????????????????????????????????? | +----------------------------------------------------+ Best States ------------- Heat Dissipation 31 Energy Generation 14 Energy Capacity 265 Matter Stores 300 Matter Capacity 300 Sight Range 16 Terrain Scan Density 10 Jamming Range 8 Armor Coverage 375 Resistance: EM 15 Evasion (%) 40 Recoil Reduction 2 Item Schematics ----------------- Hcp. Storage Unit | -9/Mines | Hacked Arm. Huge Wheel | -8/Materials | Scanalyzed System Shield | -8/Materials | Scanalyzed Robot Schematics ------------------ None Fabricated ------------ Nothing Alien Tech Used ----------------- None Achievements -------------- None Challenges ------------ None Game ------ Seed AnalysisHeavyFalx Manual? 0 Play Time 00:31:00 Cumulative 239.7 hours Start 2021.01.23 @ 00:22:13 End 2021.01.23 @ 21:38:50 Sessions 3 Manual Loads 0 Difficulty Rogue Special Mode None Game No. 169 Rogue 169 Adventurer 0 Explorer 0 Win Type - Total 6 Types 6/0/0/0/0/0/0/0/0 Lore% 56 Gallery% 64 Achievement% 48 Wizard Run 0 Options --------- ASCII 1 Keyboard 1 Movement Arrows Keybinds 0 Fullscreen 1 Font 24/Proggy Map View 76x50 Tactical HUD 1 Map Filters NONE Filters NONE Steam 1 RUN: 8fdf7e00-09a1-4be5-95f0-ef322a2f1cb2